Cogmind - Beta 16 @@@ ROGUE MODE // 2025.11.03 @ 01:31:44 Player: ChromeKnight Result: Destroyed by Executioner with Helical Railgun Performance ------------- Evolutions (8) 4000 Regions Visited (23) 4600 Robots Destroyed (127) 635 Value Destroyed (4520) 4520 Prototype IDs (56) 1120 Alien Tech Used (6) 1200 Bonus (7271) 7271 TOTAL SCORE: 23346 Bonus ------- High Alert Combat Kills 16 Follower Combat Kills 1880 Registered with UFD 300 Met Optimus in HQ 500 Met Data Miner 300 Met Zhirov 300 Found Hidden Lab 3000 Met Optimus at Protoforge 1000 Friendly Fire -25 Cogmind --------- Core Integrity 0/1450 Matter 300/300 Energy 56/100 System Corruption 8% Temperature Cool (2) Movement Flying (40) Location -2/Protoforge Parts ------- > --- POWER (2) -------- (None) > --- PROPULSION (6) --- Xenon Bombardment Thruster > --- UTILITY (13) ----- Experimental Optical Array Experimental Targeting Computer Experimental Melee Analysis Suite Experimental Core Analyzer Experimental Armor Integrity Analyzer Improved Weapon Shielding Experimental Weapon Shielding > --- WEAPON (2) ------- (None) > --- INVENTORY (5) ---- Xenon Bombardment Thruster Subatomic Replicator Concept XC Strikerail Enhanced Force Lance Peak State ------------ > --- POWER ------------ Light Quantum Reactor > --- PROPULSION ------- Myomer Leg Shield Leg Heavy Shield Leg Heavy Shield Leg > --- UTILITY ---------- Large Storage Unit Experimental Optical Array Experimental Targeting Computer Experimental Melee Analysis Suite Advanced Target Analyzer Experimental Core Analyzer Experimental Armor Integrity Analyzer Advanced Cloaking Device Concept Core Shell Experimental Propulsion Shielding Experimental Weapon Shielding Experimental Powered Armor Light Regenerative Plating > --- WEAPON ----------- Concept XC Strikerail Enhanced Force Lance > --- INVENTORY -------- Overtuned Flexi-carbon Leg Experimental ECM Suite Experimental Weapon Shielding Makeshift Medium Armor Plating Subatomic Replicator UFD Drillbomb [Rating: 195] Favorites ----------- Power Light Quantum Reactor Engine Ion Engine Power Core Hybrid Fission Core Reactor Light Quantum Reactor Propulsion Light Treads Treads Light Treads Leg Carbon-fiber Leg Wheel Compact Wheel Hover Unit Antigrav System Flight Unit VTOL Module Utility Large Storage Unit Device Shield Generator Storage Large Storage Unit Processor Improved Signal Interpreter Hackware Advanced System Shield Protection Improved Propulsion Shielding Artifact Phase Redirector Weapon Power Maul Energy Gun Particle Gun Energy Cannon Warp Cannon Ballistic Gun Coil Gun Ballistic Cannon Heavy Flak Cannon Launcher Rocket Launcher Impact Weapon Power Maul Slashing Weapon Ripper Piercing Weapon Kinetic Spear Special Melee Weapon Advanced Datajack Build | -11 -10 -10 -10 -8 -8 -6 -6 -6 -6 -5 -5 -5 -5 -5 -4 -4 -4 -3 -3 -3 -2 -2 -2 ------- Run | Yrd Mat Min Sub Rec Scr Fac Low Low Dat Pro Fac Upp Upp Zhi Pro Fac Ext Res Arm Lab Res Qua Frg Slots Evolved 16 | . . . . . . 8 . . . . 2 . . . . 2 . 2 . . 2 . . Power 1 | . . . . . . 1 . . . . . . . . . . . . . . . . . Propulsion 4 | . . . . . . 3 . . . . . . . . . . . . . . 1 . . Utility 11 | . . . . . . 4 . . . . 2 . . . . 2 . 2 . . 1 . . Weapon . | . . . . . . . . . . . . . . . . . . . . . . . . Parts Attached 231 | 6 6 4 4 4 7 35 4 . . . 27 9 . 10 1 25 14 12 10 2 6 8 37 Power 27 | 1 . 1 . . 1 4 1 . . . 2 1 . 1 . 5 1 2 2 . 2 . 3 Engine 4 | 1 . 1 . . . 1 . . . . . . . . . 1 . . . . . . . Core 9 | . . . . . 1 3 1 . . . 1 1 . . . 2 . . . . . . . Reactor 14 | . . . . . . . . . . . 1 . . 1 . 2 1 2 2 . 2 . 3 Propulsion 68 | 2 . 2 . 2 3 12 2 . . . 6 4 . 3 . 8 . 4 4 . 1 1 14 Treads 6 | 2 . 2 . 2 . . . . . . . . . . . . . . . . . . . Leg 15 | . . . . . . 5 2 . . . 4 . . . . . . . . . . . 4 Wheel 5 | . . . . . . 3 . . . . 2 . . . . . . . . . . . . Hover 23 | . . . . . . 2 . . . . . 4 . 3 . 2 . 4 4 . 1 1 2 Flight 19 | . . . . . 3 2 . . . . . . . . . 6 . . . . . . 8 Utility 89 | 1 3 . 1 1 2 13 . . . . 11 2 . 4 1 10 9 5 . 2 2 5 17 Device 29 | . 2 . 1 1 . 4 . . . . 4 1 . 4 . 3 3 3 . . . 1 2 Storage 6 | 1 1 . . . . 2 . . . . . . . . . . 1 . . . . 1 . Processor 15 | . . . . . 1 1 . . . . 4 . . . 1 1 . . . . 1 . 6 Hackware 13 | . . . . . 1 2 . . . . . . . . . 5 2 1 . . 1 1 . Protection 25 | . . . . . . 4 . . . . 3 1 . . . 1 3 1 . 2 . 1 9 Artifact 1 | . . . . . . . . . . . . . . . . . . . . . . 1 . Weapon 47 | 2 3 1 3 1 1 6 1 . . . 8 2 . 2 . 2 4 1 4 . 1 2 3 Energy Gun 16 | 2 2 . 2 1 . . . . . . 4 1 . . . 2 . . 1 . . 1 . Energy Cannon 3 | . . . . . . . . . . . 1 . . . . . . . 1 . 1 . . Ballistic Gun 4 | . . . . . 1 . . . . . 2 . . . . . . . . . . . 1 Ballistic Cannon 2 | . . . . . . . 1 . . . . . . 1 . . . . . . . . . Launcher 6 | . 1 1 . . . 2 . . . . . 1 . . . . . . . . . . 1 Special Weapon . | . . . . . . . . . . . . . . . . . . . . . . . . Impact Weapon 3 | . . . . . . 2 . . . . 1 . . . . . . . . . . . . Slashing Weapon 8 | . . . 1 . . 2 . . . . . . . . . . 4 . 1 . . . . Piercing Weapon 4 | . . . . . . . . . . . . . . 1 . . . . 1 . . 1 1 Special Melee Weapon 1 | . . . . . . . . . . . . . . . . . . 1 . . . . . Unidentified Prototypes 26 | . . . . . . 1 . . . . 2 . . 3 . . . . 2 3 3 2 10 Parts Lost 88 | . . . 3 . . 12 . . . . 31 . . . . 12 2 . . . 6 1 21 Power 14 | . . . 1 . . 2 . . . . 4 . . . . 2 1 . . . 2 . 2 Propulsion 32 | . . . . . . 7 . . . . 12 . . . . 4 . . . . 2 . 7 Utility 31 | . . . 1 . . 1 . . . . 11 . . . . 4 1 . . . 2 1 10 Weapon 11 | . . . 1 . . 2 . . . . 4 . . . . 2 . . . . . . 2 Highest Loss Streak 12 | . . . 1 . . 4 . . . . 12 . . . . 6 3 . . . 5 1 11 To Critical Strikes 1 | . . . . . . . . . . . 1 . . . . . . . . . . . . Average Backups 10 | . 13 15 13 13 12 9 11 11 11 11 9 10 13 14 14 7 4 5 8 14 14 14 8 Power . | . . . . . . . . . . . . . . . 1 . . . . 2 . . . Propulsion 2 | . 3 5 4 4 4 . 1 2 2 2 1 . 1 1 2 1 . . 2 4 3 4 1 Utility 4 | . 4 5 5 7 7 7 5 5 5 5 1 3 5 4 4 3 2 3 3 4 5 4 3 Weapon 2 | . 4 5 4 2 . 1 4 4 4 4 4 4 6 6 5 1 . . 1 3 4 3 1 Tool/Special . | . . . . . . . . . . . . . . . . . . . . . . . . Unused Backups 74 | . 11 1 2 3 2 7 4 . . . 2 . . 2 . 16 1 . 4 2 1 7 9 Power 2 | . . . . . . . . . . . . . . . . 1 . . . . . . 1 Propulsion 21 | . 5 1 . . . . . . . . . . . . . 6 . . . . . 5 4 Utility 34 | . 4 . 1 3 2 6 3 . . . . . . 2 . 6 1 . 2 1 . 2 1 Weapon 15 | . 2 . 1 . . 1 1 . . . 2 . . . . 2 . . 2 1 1 . 2 Tool/Special 2 | . . . . . . . . . . . . . . . . 1 . . . . . . 1 Average Slot Usage (%) 86 | . 99 100 97 82 82 78 95 100 93 93 71 72 82 83 88 87 82 88 98 94 92 96 79 Engine 2 | . 14 14 13 . . . . . . . . . . . . . . . . . . . . Core 3 | . . . . . 4 5 8 13 13 13 5 4 5 1 . 3 . . . . . 3 1 Reactor 1 | . . . . . . . . . . . 2 . . 3 5 5 4 4 7 4 7 4 2 Treads 9 | . 28 28 28 28 27 . . . . . . . . . . . . . . . . . . Leg 4 | . . . . . . 6 33 33 33 33 12 . . . . . . . . . . . 4 Hover 6 | . . . . . . 1 . . . . . 21 23 27 29 15 . 13 22 23 25 25 10 Flight 2 | . . . . . . 17 . . . . . . . . . 2 15 3 . . . . 3 Device 8 | . 13 14 12 13 7 8 5 6 6 6 6 3 5 12 17 14 6 10 6 4 3 . 3 Storage 7 | . 14 14 14 14 14 6 6 6 6 6 5 5 5 5 5 1 . . 1 4 4 4 3 Processor 6 | . . . . . 3 5 6 6 6 6 13 23 23 19 17 6 5 4 4 4 4 4 15 Hackware 11 | . . . . . 2 12 13 13 13 13 3 . . . . 23 30 32 33 33 33 38 12 Protection 3 | . . . . . . 3 6 6 6 6 3 . 5 5 5 4 8 6 9 8 6 7 13 Energy Gun 4 | . 19 14 10 12 2 . . . . . 1 2 5 2 5 4 . . 2 4 . . . Ballistic Gun 1 | . . . . . 4 . . . . . . 4 2 . . . . . . . . . 1 Launcher 1 | . 8 14 12 . . . . . . . . . . . . . . . . . . . . Impact Weapon 1 | . . . . . . . 6 6 6 6 7 . 2 1 . 4 1 . . . . . . Slashing Weapon 4 | . . . 4 13 14 4 . . . . . . . . . . 8 7 2 . . . . Peak Build Rating 195 | 6 12 13 16 15 26 61 65 65 60 60 78 70 70 91 90 108 106 124 131 129 145 162 195 Average Rating 62 | 4 10 12 13 14 16 46 61 65 60 60 56 62 70 82 89 97 102 112 124 123 140 154 154 On Entrance 65 | . 6 11 13 12 13 23 56 65 65 60 60 36 70 70 90 90 92 106 113 121 126 114 162 Avg Prop Armor Cover (%) 6 | . . . . . 14 9 . . . . 8 6 . . . 6 4 3 . . . 6 2 Naked Turns . | . . . . . . . . . . . . . . . . . . . . . . . . Heaviest Build 73 | 12 33 36 36 28 33 48 52 52 44 44 61 43 40 55 55 61 41 42 70 56 59 70 73 Greatest Support 170 | 40 40 40 40 40 40 80 80 75 75 75 75 44 44 55 55 64 42 42 53 53 67 70 170 Greatest Overweight (x) 9 | . . . . . 8 2 . . . . 9 1 . 1 . 1 1 4 1 1 . . 2 Average Overweight (x) . | . . . . . . . . . . . . . . . . . . . . . . . . Largest Inventory Capacity 15 | 8 15 15 15 15 15 15 15 15 15 15 15 15 15 15 15 15 15 5 15 15 15 15 15 Average Capacity 13 | 6 14 15 15 15 15 13 15 15 15 15 15 15 15 15 15 8 5 5 9 15 15 15 14 Most Carried 15 | . 15 15 15 15 15 15 15 15 15 15 15 14 13 15 14 15 5 5 15 15 15 15 15 Average Carried 12 | . 13 15 14 14 14 12 14 15 15 14 10 10 13 14 14 7 3 4 9 14 14 14 11 Final Capacity 15 | 8 15 15 15 15 15 15 15 15 15 15 15 15 15 15 15 5 5 5 15 15 15 15 5 Final Carried 15 | . 15 15 15 15 15 15 15 15 15 15 12 13 13 14 14 5 5 5 14 15 13 15 4 Class Distribution -------------------- 37% | Mutant 16% | Scavenger-Mutant 15% | Hacker-Mutant 11% | Wizard-Sprinter 9% | Wizard-Mutant 4% | Wizard-Gladiator 3% | Hacker-Sprinter Dominant Class ---------------- Mutant | -10/Materials Mutant | -10/Mines Mutant | -10/Subcaves Mutant | -8/Recycling Mutant | -8/Scraptown Hacker-Sprinter | -6/Factory Hacker-Mutant | -6/Lower Caves Hacker-Mutant | -6/Lower Caves Hacker-Mutant | -6/Data Miner Hacker-Mutant | -5/Proximity Caves Scavenger-Mutant | -5/Factory Scavenger-Mutant | -5/Upper Caves Scavenger-Mutant | -5/Upper Caves Mutant | -5/Zhirov Scavenger-Mutant | -4/Proximity Caves Wizard-Mutant | -4/Factory Wizard-Gladiator | -4/Extension Wizard-Sprinter | -3/Research Wizard-Sprinter | -3/Armory Wizard-Sprinter | -3/Lab Wizard-Sprinter | -2/Research Wizard-Sprinter | -2/Quarantine Scavenger-Mutant | -2/Protoforge Resources | -11 -10 -10 -10 -8 -8 -6 -6 -6 -6 -5 -5 -5 -5 -5 -4 -4 -4 -3 -3 -3 -2 -2 -2 ----------- Run | Yrd Mat Min Sub Rec Scr Fac Low Low Dat Pro Fac Upp Upp Zhi Pro Fac Ext Res Arm Lab Res Qua Frg Matter Collected 3582 | 225 270 22 155 98 50 605 98 . . 16 276 159 . 180 79 294 222 102 248 . . 140 343 Remotely . | . . . . . . . . . . . . . . . . . . . . . . . . Salvage Created 6173 | . 416 . 178 281 . 1210 . . . 29 924 84 . 272 118 870 469 299 129 . . 444 450 Parts 250 | . 47 . 12 13 . 46 . . . . 27 8 . 2 13 18 9 9 8 . . 14 24 Haulers Intercepted 11 | . 2 . . . . 2 . . . . 1 . . . . 2 2 1 . . . 1 . Recyclers Shooed 6 | . . . . . . 1 . . . . 2 . . . . 2 . . . . . 1 . Parts Field Recycled . | . . . . . . . . . . . . . . . . . . . . . . . . Retrieved Matter . | . . . . . . . . . . . . . . . . . . . . . . . . Parts Self-Destructed 45 | . . . 10 . . . 15 . . . . 7 . 1 12 . . . . . . . . Prevented 6 | . . . . . . . 4 . . . . 2 . . . . . . . . . . . Parts Restored . | . . . . . . . . . . . . . . . . . . . . . . . . Kills | -11 -10 -10 -10 -8 -8 -6 -6 -6 -6 -5 -5 -5 -5 -5 -4 -4 -4 -3 -3 -3 -2 -2 -2 ------- Run | Yrd Mat Min Sub Rec Scr Fac Low Low Dat Pro Fac Upp Upp Zhi Pro Fac Ext Res Arm Lab Res Qua Frg Combat Hostiles Destroyed 84 | . 13 . 7 1 . 14 . . . 1 13 3 . . 6 12 1 . 2 . . 2 9 Melee 26 | . . . 1 1 . 10 . . . 1 8 . . . . 2 1 . . . . . 2 Guns 25 | . 2 . 3 . . . . . . . . . . . 6 6 . . 2 . . . 6 Cannons 6 | . . . . . . . . . . . 1 . . . . 2 . . . . . 2 1 AOE 21 | . 11 . 3 . . 3 . . . . 1 3 . . . . . . . . . . . Classes Destroyed 20 | . 8 . 3 2 . 2 . . . 2 . . . . . 1 . . 1 . . . 1 Worker 5 | . 2 . . . . . . . . . 2 . . . . 1 . . . . . . . Builder 4 | . 1 . . . . . . . . . 2 . . . . 1 . . . . . . . Tunneler 3 | . 3 . . . . . . . . . . . . . . . . . . . . . . Hauler 11 | . 2 . . . . 2 . . . . 1 . . . . 2 2 1 . . . 1 . Recycler 9 | . . . . 2 . 3 . . . . 1 . . . . 1 . 1 . . . 1 . Minesweeper 1 | . . . . . . . . . . 1 . . . . . . . . . . . . . Mechanic 1 | . . . . . . . . . . . . . . . . 1 . . . . . . . Operator 3 | . 1 . . . . . . . . . . . . . . 1 . . . . . . 1 Drone 5 | . . . . . . . . . . 1 . . . . 2 . . . . . . . 2 Turret 1 | . . . 1 . . . . . . . . . . . . . . . . . . . . Watcher 5 | . 1 . . . . . . . . . . . . . . . 2 1 . . . 1 . Swarmer 25 | . 6 . 4 . . . . . . . . 3 . . 4 7 . . . . . . 1 Saboteur 1 | . . . . . . . . . . . . . . . . . . . . . . . 1 Grunt 19 | . 7 . . . . 6 . . . . 3 . . . . 1 1 . . . . . 1 Sentry 4 | . . . . 1 . 2 . . . . 1 . . . . . . . . . . . . Specialist 1 | . . . . . . . . . . . . . . . . . . . 1 . . . . Hunter 8 | . . . . . . 1 . . . . 5 . . . . . . . . . . 2 . Programmer 18 | . . . . . . 5 . . . . 4 . . . . 4 . . 1 . . . 4 Artisan 1 | . . . 1 . . . . . . . . . . . . . . . . . . . . Subdweller 3 | . . . 3 . . . . . . . . . . . . . . . . . . . . Best Kill Streak 7 | . 7 . 4 1 . 3 . . . 1 4 3 . . 4 5 1 1 1 . . 2 3 Combat Bots Only 5 | . 5 . 4 1 . 3 . . . 1 4 3 . . 4 5 1 . 1 . . 2 3 Max Kills in Single Turn 3 | . 3 . 2 1 . 1 . . . 1 1 3 . . 1 1 1 1 1 . . 1 1 Gunslinging . | . . . . . . . . . . . . . . . . . . . . . . . . Exploded 3 | . 3 . 2 . . 1 . . . . 1 3 . . . . . . . . . . . Melee 1 | . . . 1 1 . 1 . . . 1 1 . . . . 1 1 . . . . . 1 Uniques/NPCs Destroyed . | . . . . . . . . . . . . . . . . . . . . . . . . Combat | -11 -10 -10 -10 -8 -8 -6 -6 -6 -6 -5 -5 -5 -5 -5 -4 -4 -4 -3 -3 -3 -2 -2 -2 -------- Run | Yrd Mat Min Sub Rec Scr Fac Low Low Dat Pro Fac Upp Upp Zhi Pro Fac Ext Res Arm Lab Res Qua Frg Hostile Shots Fired 1390 | . 29 . 155 . . 178 6 8 . . 300 8 . . 16 155 31 10 17 . 118 55 304 Missed 506 | . 15 . 75 . . 56 1 4 . . 84 3 . . 4 46 13 6 9 . 52 31 107 Deflected 6 | . . . . . . . . . . . . . . . . . . . . . . . 6 Hits 884 | . 14 . 80 . . 122 5 4 . . 216 5 . . 12 109 18 4 8 . 66 24 197 Melee 16 | . . . . . . . . . . . . . . . . . . . . . . . 16 Projectile 868 | . 14 . 80 . . 122 5 4 . . 216 5 . . 12 109 18 4 8 . 66 24 181 AOE 2 | . . . . . . . . . . . 1 . . . . 1 . . . . . . . Critical Strikes 41 | . . . . . . 2 . . . . 11 . . . . 12 1 . . . 1 . 14 Actively Blocked 3 | . . . . . . . . . . . . . . . . . . . . . 1 . 2 Part Disruptions 3 | . . . . . . . . . . . 2 . . . . 1 . . . . . . . Damage Taken 16895 | . 169 . 699 . . 1483 92 58 . . 4129 69 . . 158 2119 361 108 161 . 1283 521 5485 Core 3298 | . 19 . 145 . . 232 . . . . 948 25 . . 26 457 37 . 68 . 222 23 1096 Absorbed by Shields 451 | . 68 . 273 . . . . . . . . . . . . 19 . . 91 . . . . Redirected to Shielding 592 | . . . . . . 130 20 18 . . . . . . . . . . 12 . 100 . 312 Ignored by Resistances 69 | . . . . . . . . . . . . . . . 33 36 . . . . . . . Regen/Repaired (Parts) 573 | . . . . . 177 . . . . . . . . . . . . . . . 73 268 55 Core Remaining (%) 60 | 100 . . . . 34 . . . . 72 . . . . . . 57 . . 100 . . . Volleys Fired 300 | . 44 . 47 . . 4 3 . . . 31 1 . 21 36 50 . . 13 . 2 13 35 Largest 2 | . 2 . 2 . . 1 1 . . . 2 1 . 1 1 1 . . 1 . 1 1 1 Hottest 159 | . 95 . 130 . . 43 44 . . . 159 43 . 88 88 90 . . 65 . 100 100 100 Shots Fired 369 | . 87 . 64 . . 3 3 1 . . 41 1 . 19 37 51 . . 13 . 2 13 34 Gun 308 | . 71 . 59 . . . . . . . 30 . . 19 37 47 . . 13 . . . 32 Cannon 36 | . . . . . . . 3 1 . . 11 . . . . 4 . . . . 2 13 2 Launcher 25 | . 16 . 5 . . 3 . . . . . 1 . . . . . . . . . . . Special . | . . . . . . . . . . . . . . . . . . . . . . . . Kinetic 39 | . . . . . . . 3 1 . . 3 . . . . . . . . . . . 32 Thermal 283 | . 71 . 59 . . . . . . . 16 . . 19 37 51 . . 13 . 2 13 2 Explosive 24 | . 16 . 5 . . 3 . . . . . . . . . . . . . . . . . Electromagnetic 23 | . . . . . . . . . . . 22 1 . . . . . . . . . . . Robot Hit Streak 27 | . 7 . 14 . . 8 2 . . . 5 3 . 8 4 6 . . 12 . . 24 27 Robot Miss Streak 8 | . 4 . 5 . . . 7 . . . 8 . . 1 2 3 . . . . . . 1 Penetration Max 1 | . . . . . . . . . . . 1 . . . . . . . . . . . 1 Secondary Targets . | . . . . . . . . . . . . . . . . . . . . . . . . Shots Hit Robots 388 | . 42 . 41 4 . 55 2 . . 2 65 1 . 16 10 43 18 7 17 . . 19 46 Core Hits 157 | . 31 1 13 4 . 29 . . . . 11 3 . 7 6 17 3 2 6 . . 6 18 Critical Kills 6 | . . . . . . . . . . . 3 . . . . 1 . . . . . . 2 Critical Parts Destroyed 19 | . . . . . . 1 . . . 1 8 . . . . 6 . . . . . . 3 Critical Strikes 50 | . . . 1 . . 12 . . . 1 13 . . . 3 7 3 1 . . . . 9 Burn 5 | . . . 1 . . . . . . . 1 . . . 3 . . . . . . . . Destroy 9 | . . . . . . . . . . . . . . . . 4 . . . . . . 5 Corrupt 1 | . . . . . . . . . . . 1 . . . . . . . . . . . . Smash 16 | . . . . . . 1 . . . 1 11 . . . . 3 . . . . . . . Sever 15 | . . . . . . 11 . . . . . . . . . . 3 1 . . . . . Impale 4 | . . . . . . . . . . . . . . . . . . . . . . . 4 Melee Attacks 354 | . . . 7 6 . 79 1 3 . 2 67 . 3 . . 47 27 15 15 5 32 18 27 Impact 132 | . . . . . . 3 1 3 . 2 67 . 3 . . 47 6 . . . . . . Slashing 129 | . . . 7 6 . 76 . . . . . . . . . . 21 14 5 . . . . Piercing 87 | . . . . . . . . . . . . . . . . . . . 5 5 32 18 27 Sneak Attacks 47 | . . . 1 2 . 9 1 . . 2 8 . . . . 5 7 3 4 . . 3 2 Combat Hostiles 4 | . . . . . . 1 . . . 1 . . . . . 1 1 . . . . . . Follow-up Attacks 9 | . . . . . . 1 . . . . 3 . . . . . 3 2 . . . . . Damage Inflicted 16723 | . 1225 3 850 243 . 2526 98 . . 171 3052 127 . 576 366 2150 1151 470 390 . . 1085 2240 Guns 4802 | . 414 . 518 . . . . . . . 417 . . 576 366 971 . . 390 . . . 1150 Cannons 1130 | . . . . . . . 22 . . . 245 . . . . 170 . . . . . 575 118 Explosions 1514 | . 811 . 218 . . 358 . . . . . 127 . . . . . . . . . . . Melee 9252 | . . . 114 243 . 2168 76 . . 171 2390 . . . . 987 1151 470 . . . 510 972 Ramming 25 | . . 3 . . . . . . . . . . . . . 22 . . . . . . . Kinetic 1231 | . . . . . . . 22 . . . 59 . . . . . . . . . . . 1150 Thermal 4435 | . 414 . 518 . . . . . . . 321 16 . 576 366 1141 . . 390 . . 575 118 Explosive 1372 | . 811 . 218 . . 343 . . . . . . . . . . . . . . . . . Electromagnetic 408 | . . . . . . 15 . . . . 282 111 . . . . . . . . . . . Impact 3861 | . . . . . . 105 76 . . 171 2390 . . . . 987 132 . . . . . . Slashing 3909 | . . . 114 243 . 2063 . . . . . . . . . . 1019 470 . . . . . Piercing 1482 | . . . . . . . . . . . . . . . . . . . . . . 510 972 Highest Corruption 9 | . 2 2 2 2 . 1 1 1 1 1 9 9 9 9 8 7 7 . 2 2 1 1 8 Average Corruption 3 | . 2 2 2 2 . 1 1 1 1 1 4 9 9 8 8 6 1 . 2 2 1 1 3 Corruption Purged 8 | . . . . . . . . . . . . . . 1 . . 7 . . . . . . Corruption Blocked . | . . . . . . . . . . . . . . . . . . . . . . . . Effects 197 | . 14 5 12 8 . 5 7 6 . 3 24 11 4 8 33 10 12 . 9 1 . 6 19 Message Errors 48 | . 6 3 1 1 . 1 2 1 . 1 7 4 1 3 4 2 3 . 1 1 . 3 3 Matter Fused 44 | . 5 . 2 2 . . 2 1 . . 5 4 2 2 9 3 2 . 1 . . . 4 Heat Flow Errors 24 | . . 2 1 1 . . . 2 . . 2 1 . . 7 . 3 . 2 . . . 3 Energy Discharges 23 | . . . 4 1 . . 1 1 . 2 3 1 . 1 4 1 1 . 2 . . 1 . Parts Rejected 7 | . . . 2 . . 1 . . . . . 1 . . . 1 . . 1 . . . 1 Parts Fused 1 | . . . . 1 . . . . . . . . . . . . . . . . . . . Data Loss (minor) 28 | . 1 . 1 2 . 2 1 . . . 3 . 1 . 6 1 2 . 2 . . 1 5 Data Loss (major) 10 | . 1 . 1 . . . 1 . . . 1 . . . 1 1 1 . . . . 1 2 Misfires 7 | . 1 . . . . . . 1 . . 3 . . . 1 1 . . . . . . . Alerts 1 | . . . . . . . . . . . . . . . 1 . . . . . . . . Weapon Failures 4 | . . . . . . 1 . . . . . . . 2 . . . . . . . . 1 Overload Shots . | . . . . . . . . . . . . . . . . . . . . . . . . Overflow Damage 2494 | . . . 50 . . 186 . . . 131 819 . . . . 410 312 154 . . . 135 297 Projectiles 101 | . . . . . . . . . . . 3 . . . . 28 . . . . . 70 . Explosions 8 | . . . 8 . . . . . . . . . . . . . . . . . . . . Melee 2385 | . . . 42 . . 186 . . . 131 816 . . . . 382 312 154 . . . 65 297 Knockbacks 20 | . . . . . . . 2 . . . 8 . . . . 8 2 . . . . . . Impact 16 | . . . . . . . 1 . . . 8 . . . . 5 2 . . . . . . Kinetic 1 | . . . . . . . 1 . . . . . . . . . . . . . . . . Secondary 3 | . . . . . . . . . . . . . . . . 3 . . . . . . . Self-Inflicted Damage 235 | . 98 . 127 . . . . . . . . . . . . 10 . . . . . . . Shots 7 | . 3 . 4 . . . . . . . . . . . . . . . . . . . . Rammed 4 | . . 2 . . . . . . . . . . . . . 2 . . . . . . . Targets Rammed 4 | . . 2 . . . . . . . . . . . . . 2 . . . . . . . Kicked . | . . . . . . . . . . . . . . . . . . . . . . . . Crushed . | . . . . . . . . . . . . . . . . . . . . . . . . Highest Temperature 366 | . 189 126 231 256 . 5 . 213 . . 284 112 5 112 255 366 238 . 236 . 142 1 129 Average Temperature 56 | . 48 68 56 136 . 1 . 88 . . 122 48 3 43 56 102 91 . 34 . 38 1 79 Received Heat Transfer 2056 | . 32 . 216 . . 231 27 . . . 747 . . . 21 214 120 18 16 . 54 9 351 Effects 1 | . . . . . . . . . . . . . . . . 1 . . . . . . . Shutdowns 1 | . . . . . . . . . . . . . . . . 1 . . . . . . . Siege Activations . | . . . . . . . . . . . . . . . . . . . . . . . . Martial Activations . | . . . . . . . . . . . . . . . . . . . . . . . . Shielding Activations 2 | . . . . . . . . . . . . . . . . . . . . . . . 2 Total Turns 39 | . . . . . . . . . . . . . . . . . . . . . . . 39 Longest Duration 22 | . . . . . . . . . . . . . . . . . . . . . . . 22 Robots Disrupted . | . . . . . . . . . . . . . . . . . . . . . . . . Combat Hostiles . | . . . . . . . . . . . . . . . . . . . . . . . . Robots Corrupted 13 | . . . . . . 1 . . . 1 5 . . . . 5 1 . . . . . . Combat Hostiles 5 | . . . . . . 1 . . . . 2 . . . . 2 . . . . . . . Parts Fried 28 | . . . . . . 1 . . . 3 10 . . . . 11 3 . . . . . . Impact Corruptions 49 | . . . . . . 1 . . . 4 25 . . . . 18 1 . . . . . . Robots Melted 1 | . . . . . . . . . . . 1 . . . . . . . . . . . . Combat Hostiles 1 | . . . . . . . . . . . 1 . . . . . . . . . . . . Parts Melted 4 | . . . 1 . . . . . . . 2 . . . . 1 . . . . . . . Heat Transferred 6318 | . 909 . 1332 . . . . . . . 481 50 . 508 629 1410 . . 444 . . 481 74 Parts Sabotaged . | . . . . . . . . . . . . . . . . . . . . . . . . Parts Stolen . | . . . . . . . . . . . . . . . . . . . . . . . . Parts Stripped . | . . . . . . . . . . . . . . . . . . . . . . . . Power Chain Reactions 1 | . . . . . . . . . . . . 1 . . . . . . . . . . . Alert | -11 -10 -10 -10 -8 -8 -6 -6 -6 -6 -5 -5 -5 -5 -5 -4 -4 -4 -3 -3 -3 -2 -2 -2 ------- Run | Yrd Mat Min Sub Rec Scr Fac Low Low Dat Pro Fac Upp Upp Zhi Pro Fac Ext Res Arm Lab Res Qua Frg Maximum Alert Level 2 | . 1 . . . . 1 . . . . . . . . . 1 2 1 . . . . . Low Security (%) 88 | 100 83 100 . 100 . 85 . . . . 100 . . . . 88 44 76 100 . 100 100 100 Level 1 8 | . 16 . . . . 14 . . . . . . . . . 11 27 23 . . . . . Level 2 2 | . . . . . . . . . . . . . . . . . 28 . . . . . . Level 3 . | . . . . . . . . . . . . . . . . . . . . . . . . Level 4 . | . . . . . . . . . . . . . . . . . . . . . . . . Level 5 . | . . . . . . . . . . . . . . . . . . . . . . . . High Security . | . . . . . . . . . . . . . . . . . . . . . . . . Max Security . | . . . . . . . . . . . . . . . . . . . . . . . . Peak Influence 581 | . 238 75 . 70 . 242 . . . . 150 . . . . 229 581 341 195 . 103 65 144 Initial 304 | . . 75 . 66 . . . . . . 150 . . . . 150 109 304 . . . 20 18 Average 76 | . 99 14 . 11 . 58 . . . . 26 . . . . 85 272 129 67 . 36 18 64 Influence Increases 6375 | . 531 . 212 59 . 677 15 . . 10 636 60 60 10 130 840 1326 104 583 . 268 257 597 Destroy 0b10 Robot/C 2300 | . 260 . 120 20 . 280 . . . . 260 60 . . 80 240 540 . 220 . . 80 140 Destroy 0b10 Robot/NC 275 | . 50 . . 15 . 25 . . . 10 30 . . 10 10 35 35 15 10 . . 15 15 Destroy Leader 404 | . 66 . . . . 104 . . . . 62 . . . 10 34 46 4 34 . . 14 30 Allied During Kill 554 | . . . 2 . . . . . . . . . . . . . 466 . 82 . . 4 . Trap Triggered on 0b10 80 | . . . . . . 20 . . . . 20 . . . . . . . . . . . 40 Successful Hack 207 | . 25 . . 22 . 79 . . . . . . . . . 38 . 15 18 . 10 . . Disable Machine 345 | . 15 . . . . 75 . . . . 45 . . . . 30 . 15 60 . 15 45 45 Destroy Structure 440 | . 85 . . 2 . 34 . . . . 24 . . . . 58 14 10 84 . 78 9 42 Advance Influence 300 | . . . . . . . . . . . 150 . . . . 150 . . . . . . . Partial Spotted 420 | . . . . . . 30 . . . . . . . . . 30 165 30 30 . 75 15 45 Lose Combat Pursuer 1050 | . 30 . 90 . . 30 15 . . . 45 . 60 . 30 225 60 15 45 . 90 75 240 Influence Decreases 6352 | . 337 194 74 197 . 439 253 . . 10 624 72 60 10 130 615 970 685 558 25 232 259 608 Entered New Map 735 | . . 119 . 72 . . 89 . . . . 5 . . . . 116 277 . 25 . 16 16 Time Decay 3980 | . 337 75 54 125 . 319 164 . . 10 455 67 60 10 130 355 434 258 378 . 144 203 402 Lost Part 667 | . . . 20 . . 110 . . . . 169 . . . . 98 20 . . . 60 . 190 Lost Ally 630 | . . . . . . 10 . . . . . . . . . . 400 . 180 . . 40 . Purge Threat 340 | . . . . . . . . . . . . . . . . 162 . 150 . . 28 . . Squads Dispatched 55 | . 2 . . . . 13 . . . . 8 . . . . 7 1 4 3 . 5 6 6 Investigation 23 | . 2 . . . . 5 . . . . 4 . . . . 3 . 1 1 . 3 2 2 Extermination 22 | . . . . . . 5 . . . . 4 . . . . 3 . 2 2 . 1 3 2 Reinforcement 9 | . . . . . . 3 . . . . . . . . . 1 . 1 . . 1 1 2 Assault 1 | . . . . . . . . . . . . . . . . . 1 . . . . . . Garrison . | . . . . . . . . . . . . . . . . . . . . . . . . Intercept . | . . . . . . . . . . . . . . . . . . . . . . . . Searches Triggered . | . . . . . . . . . . . . . . . . . . . . . . . . Data Miner Redirects 1 | . . . . . . . . . . . 1 . . . . . . . . . . . . Construction Impeded 1 | . . . . . . 1 . . . . . . . . . . . . . . . . . Haulers Reinforced 1 | . . . . . . 1 . . . . . . . . . . . . . . . . . Active Scanning Responses . | . . . . . . . . . . . . . . . . . . . . . . . . Cargo Convoy Interrupts . | . . . . . . . . . . . . . . . . . . . . . . . . Stealth | -11 -10 -10 -10 -8 -8 -6 -6 -6 -6 -5 -5 -5 -5 -5 -4 -4 -4 -3 -3 -3 -2 -2 -2 --------- Run | Yrd Mat Min Sub Rec Scr Fac Low Low Dat Pro Fac Upp Upp Zhi Pro Fac Ext Res Arm Lab Res Qua Frg Distress Signals 20 | . 3 . . . . 1 . . . 1 . . . . . 2 4 . 1 . 2 1 5 Communications Jammed 21 | . . . . . . . . . . . . . . . . 21 . . . . . . . Distress Signals 21 | . . . . . . . . . . . . . . . . 21 . . . . . . . Times Spotted 338 | . 27 1 15 1 . 26 6 1 . 1 28 5 2 . 9 33 40 6 19 . 37 15 66 Peak Tracking Total 25 | . 4 1 5 1 . 4 3 1 . 1 7 5 4 . 4 5 8 2 4 . 25 6 11 Tactical Retreats 41 | . 2 . 3 . . 2 1 . . . 1 . 1 . 1 10 3 1 3 . 3 2 8 Traps | -11 -10 -10 -10 -8 -8 -6 -6 -6 -6 -5 -5 -5 -5 -5 -4 -4 -4 -3 -3 -3 -2 -2 -2 ------- Run | Yrd Mat Min Sub Rec Scr Fac Low Low Dat Pro Fac Upp Upp Zhi Pro Fac Ext Res Arm Lab Res Qua Frg Traps Triggered 18 | . 1 . 4 . . 2 . . . . 4 . . . . 3 3 . . . . 1 . Indirectly . | . . . . . . . . . . . . . . . . . . . . . . . . Trap Hack Attempts . | . . . . . . . . . . . . . . . . . . . . . . . . Triggered . | . . . . . . . . . . . . . . . . . . . . . . . . Disarmed . | . . . . . . . . . . . . . . . . . . . . . . . . Reprogrammed 6 | . . . . . . . . . . . . . . . . . . . . . . . 6 Reused 8 | . . . . . . 2 . . . . 2 . . . . . . . . . . . 4 Traps Extracted . | . . . . . . . . . . . . . . . . . . . . . . . . Installed 5 | . . . . . . 2 . . . . 3 . . . . . . . . . . . . Triggered 8 | . . . . . . 2 . . . . 2 . . . . . . . . . . . 4 Most Traps Carried 4 | . . . . . 3 3 4 3 3 3 3 . . . . . . . . . . . . Machines | -11 -10 -10 -10 -8 -8 -6 -6 -6 -6 -5 -5 -5 -5 -5 -4 -4 -4 -3 -3 -3 -2 -2 -2 ---------- Run | Yrd Mat Min Sub Rec Scr Fac Low Low Dat Pro Fac Upp Upp Zhi Pro Fac Ext Res Arm Lab Res Qua Frg Machines Disabled 26 | . 1 . 1 . . 5 . . . . 3 . . 1 . 2 . 1 4 1 1 3 3 Max in Single Turn 2 | . 1 . 1 . . 2 . . . . 1 . . 1 . 1 . 1 1 1 1 1 1 Garrison Access 1 | . . . . . . . . . . . . . . . . . . 1 . . . . . Machines Repaired . | . . . . . . . . . . . . . . . . . . . . . . . . Machines Dismantled . | . . . . . . . . . . . . . . . . . . . . . . . . Machines Sabotaged . | . . . . . . . . . . . . . . . . . . . . . . . . Overloaded Fab Kills . | . . . . . . . . . . . . . . . . . . . . . . . . Hacking | -11 -10 -10 -10 -8 -8 -6 -6 -6 -6 -5 -5 -5 -5 -5 -4 -4 -4 -3 -3 -3 -2 -2 -2 --------- Run | Yrd Mat Min Sub Rec Scr Fac Low Low Dat Pro Fac Upp Upp Zhi Pro Fac Ext Res Arm Lab Res Qua Frg Machines Accessed 81 | . 9 . 1 3 2 11 1 . 3 . 5 . . 4 . 10 . 7 3 . 6 9 7 Terminals 43 | . 8 . . 3 . 4 . . . . 1 . . . . 5 . 5 2 . 3 7 5 Fabricators 3 | . . . . . . . . . . . 1 . . . . 1 . . 1 . . . . Repair Stations 7 | . 1 . . . . 3 . . . . . . . . . 1 . . . . 1 1 . Recycling Units 14 | . . . . . . 4 . . . . 3 . . . . 2 . 1 . . 2 . 2 Scanalyzers 1 | . . . . . . . . . . . . . . . . 1 . . . . . . . Garrison Access 2 | . . . . . . . . . . . . . . . . . . 1 . . . 1 . Total Hacks 323 | . 21 . 3 8 16 39 1 . 22 . 11 . . 16 . 51 . 22 17 . 22 53 21 Successful 198 | . 11 . 3 3 16 14 1 . 22 . 4 . . 16 . 24 . 10 11 . 14 33 16 Failed 125 | . 10 . . 5 . 25 . . . . 7 . . . . 27 . 12 6 . 8 20 5 Catastrophic 24 | . 4 . . 2 . 5 . . . . 2 . . . . 8 . . . . . 3 . Database Lockouts . | . . . . . . . . . . . . . . . . . . . . . . . . Manual 130 | . 16 . . 5 . 19 . . . . 8 . . . . 22 . 6 1 . 12 36 5 Terminals 193 | . 20 . . 8 . 19 . . . . 5 . . . . 27 . 18 14 . 19 44 19 Fabricators 8 | . . . . . . . . . . . 3 . . . . 2 . . 3 . . . . Repair Stations 26 | . 1 . . . . 15 . . . . . . . . . 3 . . . . 1 6 . Recycling Units 15 | . . . . . . 5 . . . . 3 . . . . 2 . 1 . . 2 . 2 Scanalyzers 17 | . . . . . . . . . . . . . . . . 17 . . . . . . . Garrison Access 6 | . . . . . . . . . . . . . . . . . . 3 . . . 3 . Terminal Hacks 136 | . 3 . 3 . 16 5 1 . 22 . . . . 16 . 9 . 7 9 . 11 20 14 Record 31 | . . . 3 . 15 . . . 6 . . . . 5 . . . . . . 2 . . Part Schematic 14 | . . . . . . 1 . . 10 . . . . 3 . . . . . . . . . Robot Schematic 3 | . . . . . . . . . 3 . . . . . . . . . . . . . . Robot Analysis 11 | . 2 . . . . . . . . . . . . 4 . . . . 2 . 1 . 2 Prototype ID Bank 8 | . . . . . . 1 . . 3 . . . . 4 . . . . . . . . . Open Door 1 | . . . . . . . 1 . . . . . . . . . . . . . . . . Level Access Points 1 | . . . . . . . . . . . . . . . . . . . 1 . . . . Branch Access Points 4 | . 1 . . . . 1 . . . . . . . . . . . 1 . . 1 . . Emergency Access Points 2 | . . . . . . . . . . . . . . . . . . 1 . . . 1 . Machine Index 2 | . . . . . . . . . . . . . . . . . . . . . . 1 1 Terminal Index 2 | . . . . . . . . . . . . . . . . 1 . . 1 . . . . Repair Station Index 1 | . . . . . . . . . . . . . . . . 1 . . . . . . . Recycling Unit Index 4 | . . . . . . . . . . . . . . . . 1 . 1 1 . . 1 . Garrison Index 1 | . . . . . . . . . . . . . . . . . . . . . . . 1 Unreport Threat 6 | . . . . . . . . . . . . . . . . 3 . 1 . . 1 1 . Locate Traps 8 | . . . . . . . . . . . . . . . . 1 . . 2 . 1 1 3 Reprogram Traps 1 | . . . . . . . . . . . . . . . . . . . . . . . 1 Surveillance Status 1 | . . . . . . . . . . . . . . . . . . . . . . 1 . Patrol Status 6 | . . . . . . 1 . . . . . . . . . 1 . . . . 1 2 1 Investigation Status 1 | . . . . . . . . . . . . . . . . . . . . . . 1 . Recall Investigation 4 | . . . . . . . . . . . . . . . . 1 . . . . 1 2 . Recall Extermination 3 | . . . . . . . . . . . . . . . . . . 1 . . . 1 1 Recall Reinforcements 2 | . . . . . . . . . . . . . . . . . . . . . 1 1 . Registered Components 3 | . . . . . . . . . . . . . . . . . . 1 1 . . 1 . Registered Prototypes 2 | . . . . . . . . . . . . . . . . . . . 1 . . 1 . Zone Layout 13 | . . . . . . 1 . . . . . . . . . . . 1 . . 2 5 4 Proto ID Catalog 1 | . . . . . 1 . . . . . . . . . . . . . . . . . . Fabricator Hacks 5 | . . . . . . . . . . . 1 . . . . 2 . . 2 . . . . Load Schematic 2 | . . . . . . . . . . . . . . . . 1 . . 1 . . . . Build 3 | . . . . . . . . . . . 1 . . . . 1 . . 1 . . . . Repair Station Hacks 10 | . . . . . . 4 . . . . . . . . . 1 . . . . . 5 . Scan Component 7 | . . . . . . 4 . . . . . . . . . 1 . . . . . 2 . Repair 2 | . . . . . . . . . . . . . . . . . . . . . . 2 . Refit 1 | . . . . . . . . . . . . . . . . . . . . . . 1 . Recycling Unit Hacks . | . . . . . . . . . . . . . . . . . . . . . . . . Scanalyzer 8 | . . . . . . . . . . . . . . . . 8 . . . . . . . Retrieve Study 8 | . . . . . . . . . . . . . . . . 8 . . . . . . . Garrison Access Hacks 1 | . . . . . . . . . . . . . . . . . . 1 . . . . . Seal Access 1 | . . . . . . . . . . . . . . . . . . 1 . . . . . Unauthorized Hacks 38 | . 8 . . 3 . 5 . . . . 3 . . . . 4 . 2 . . 3 8 2 Terminals 20 | . 7 . . 3 . 1 . . . . . . . . . 2 . 1 . . . 6 . Track 4 | . 1 . . . . . . . . . . . . . . . . . . . . 3 . Assimilate 2 | . . . . . . 1 . . . . . . . . . . . 1 . . . . . Botnet 3 | . . . . . . . . . . . . . . . . 1 . . . . . 2 . Operators 3 | . 1 . . . . . . . . . . . . . . 1 . . . . . 1 . Skim 8 | . 5 . . 3 . . . . . . . . . . . . . . . . . . . Fabricators . | . . . . . . . . . . . . . . . . . . . . . . . . Repair Stations 2 | . 1 . . . . . . . . . . . . . . . . . . . 1 . . Patch 2 | . 1 . . . . . . . . . . . . . . . . . . . 1 . . Recycling Units 14 | . . . . . . 4 . . . . 3 . . . . 2 . 1 . . 2 . 2 Fedlink 14 | . . . . . . 4 . . . . 3 . . . . 2 . 1 . . 2 . 2 Scanalyzers . | . . . . . . . . . . . . . . . . . . . . . . . . Garrison Access 2 | . . . . . . . . . . . . . . . . . . . . . . 2 . Reprogram 1 | . . . . . . . . . . . . . . . . . . . . . . 1 . Watchers 1 | . . . . . . . . . . . . . . . . . . . . . . 1 . Data Cores Recovered 3 | . 1 . . . . . . . . . . . . . . 1 . . . . . . 1 Used . | . . . . . . . . . . . . . . . . . . . . . . . . Hacking Detections 37 | . 5 . . 3 . 6 . . . . 2 . . . . 8 . 4 2 . 3 1 3 Full Trace Events 7 | . 2 . . 1 . 1 . . . . 1 . . . . 1 . . 1 . . . . Feedback Events . | . . . . . . . . . . . . . . . . . . . . . . . . Feedback Blocked . | . . . . . . . . . . . . . . . . . . . . . . . . Robot Schematics Acquired 3 | . . . . . . . . . 3 . . . . . . . . . . . . . . Robots Built . | . . . . . . . . . . . . . . . . . . . . . . . . Authchips . | . . . . . . . . . . . . . . . . . . . . . . . . Time . | . . . . . . . . . . . . . . . . . . . . . . . . Total Robot Build Rating . | . . . . . . . . . . . . . . . . . . . . . . . . Part Schematics Acquired 14 | . . . . . . 1 . . 10 . . . . 3 . . . . . . . . . Parts Built 4 | . . . . . . . . . . . 2 . . . . 1 . . 1 . . . . Authchips . | . . . . . . . . . . . . . . . . . . . . . . . . Time 308 | . . . . . . . . . . . 106 . . . . 152 . . 50 . . . . Total Part Build Rating 22 | . . . . . . . . . . . 12 . . . . 5 . . 5 . . . . Part Studies Acquired 8 | . . . . . . . . . . . . . . . . 8 . . . . . . . Parts Repaired 2 | . . . . . . . . . . . . . . . . . . . . . . 2 . Time 36 | . . . . . . . . . . . . . . . . . . . . . . 36 . Parts Recycled . | . . . . . . . . . . . . . . . . . . . . . . . . Recycled Matter . | . . . . . . . . . . . . . . . . . . . . . . . . Retrieved Matter . | . . . . . . . . . . . . . . . . . . . . . . . . Retrieved Components . | . . . . . . . . . . . . . . . . . . . . . . . . Parts Scanalyzed . | . . . . . . . . . . . . . . . . . . . . . . . . Part Schematics Acquired . | . . . . . . . . . . . . . . . . . . . . . . . . Parts Damaged . | . . . . . . . . . . . . . . . . . . . . . . . . Bothacking | -11 -10 -10 -10 -8 -8 -6 -6 -6 -6 -5 -5 -5 -5 -5 -4 -4 -4 -3 -3 -3 -2 -2 -2 ------------ Run | Yrd Mat Min Sub Rec Scr Fac Low Low Dat Pro Fac Upp Upp Zhi Pro Fac Ext Res Arm Lab Res Qua Frg Used RIF Installer . | . . . . . . . . . . . . . . . . . . . . . . . . Robots Hacked 2 | . . . . . . . . . . . . . . . . . . 1 1 . . . . Non-combat . | . . . . . . . . . . . . . . . . . . . . . . . . Combat . | . . . . . . . . . . . . . . . . . . . . . . . . Robot Hacks Applied . | . . . . . . . . . . . . . . . . . . . . . . . . Manual 2 | . . . . . . . . . . . . . . . . . . 1 1 . . . . Relay Couplers Released 3 | . . . . . . 3 . . . . . . . . . . . . . . . . . Machine Destruction 3 | . . . . . . 3 . . . . . . . . . . . . . . . . . Fabnet Peak Effective % . | . . . . . . . . . . . . . . . . . . . . . . . . Robots Rewired 29 | . . . . . . . . . . . . . . . . . 21 . 8 . . . . Allies Hacked 1 | . . . . . . . . . . . . . . . . . . . 1 . . . . Hacks Repelled 1 | . . . . . . . . . . . . . . . . . . . 1 . . . . Allies | -11 -10 -10 -10 -8 -8 -6 -6 -6 -6 -5 -5 -5 -5 -5 -4 -4 -4 -3 -3 -3 -2 -2 -2 -------- Run | Yrd Mat Min Sub Rec Scr Fac Low Low Dat Pro Fac Upp Upp Zhi Pro Fac Ext Res Arm Lab Res Qua Frg Total Allies 44 | . . 3 . . . 1 . . . . . . . . . . 27 2 9 . . 2 . Largest Group 11 | . . 3 2 . . 1 . . . . . . . . . . 11 2 10 . . 2 . Highest-Rated Group 593 | . . 40 32 . . 26 . . . . . . . . . . 569 161 593 . . 164 . Highest-Rated Ally 159 | . . 16 16 . . 26 . . . . . . . . . . 159 116 116 . . 82 . Total Orders 2 | . . . . . . 2 . . . . . . . . . . . . . . . . . STAY 1 | . . . . . . 1 . . . . . . . . . . . . . . . . . FOLLOW 1 | . . . . . . 1 . . . . . . . . . . . . . . . . . Ally Attacks 281 | . . 4 14 . . . . . . . . . . . . . 216 . 41 . . 6 . Total Damage 8216 | . . 53 76 . . . . . . . . . . . . . 5997 . 1803 . . 287 . Kills 44 | . . . 1 . . . . . . . . . . . . . 30 . 11 . . 2 . Allies Corrupted 8 | . . . . . . . . . . . . . . . . . . . 7 . . 1 . Allies Melted 1 | . . . . . . . . . . . . . . . . . . . . . . . 1 Intel | -11 -10 -10 -10 -8 -8 -6 -6 -6 -6 -5 -5 -5 -5 -5 -4 -4 -4 -3 -3 -3 -2 -2 -2 ------- Run | Yrd Mat Min Sub Rec Scr Fac Low Low Dat Pro Fac Upp Upp Zhi Pro Fac Ext Res Arm Lab Res Qua Frg Active Infowar (turns) 9044 | . . . . . 977 1115 643 537 99 405 508 . . . 895 1312 21 404 1052 127 371 . 578 Optics 1694 | . . . . . . . . . . . . . . . 895 222 . . . . . . 577 Sensors 6253 | . . . . . . 1115 643 537 99 405 508 . . . . 972 21 403 1052 127 371 . . T.N.C. 977 | . . . . . 977 . . . . . . . . . . . . . . . . . . Cloaking 61 | . . . . . . . . . . . . . . . . . . . . . . . 61 Jamming 861 | . . . . . . . . . . . . . . . . 824 . 37 . . . . . ECM 2 | . . . . . . . . . . . . . . . . . . . . . . . 2 Robot Analysis Total 11 | . 2 . . . . . . . . . . . . 4 . . . . 2 . 1 . 2 Derelict Logs Recovered 13 | . . 2 2 . 1 . 2 1 . 1 . 2 2 . . . . . . . . . . Drone Launches . | . . . . . . . . . . . . . . . . . . . . . . . . Drone Recoveries . | . . . . . . . . . . . . . . . . . . . . . . . . Exploration | -11 -10 -10 -10 -8 -8 -6 -6 -6 -6 -5 -5 -5 -5 -5 -4 -4 -4 -3 -3 -3 -2 -2 -2 ------------- Run | Yrd Mat Min Sub Rec Scr Fac Low Low Dat Pro Fac Upp Upp Zhi Pro Fac Ext Res Arm Lab Res Qua Frg Turns Passed 21128 | 60 1453 423 1296 634 3654 1832 722 537 99 405 2032 381 195 213 907 1347 1069 586 1052 198 398 627 1008 Spaces Moved 17399 | 40 781 218 667 375 2241 1893 461 299 83 315 990 408 352 177 743 1243 942 722 1110 196 839 989 1315 Core 60 | 11 . . . . 1 . . . . . 3 . . . . . . . . . . . 45 Treads 4306 | 29 781 218 667 375 2230 6 . . . . . . . . . . . . . . . . . Legs 2209 | . . . . . . 263 461 299 83 315 648 4 . . . . . . . . . . 136 Wheels 411 | . . . . . . 72 . . . . 339 . . . . . . . . . . . . Hover 7078 | . . . . . . 4 . . . . . 404 352 177 743 918 . 577 1110 196 839 989 769 Flight 3335 | . . . . . 10 1548 . . . . . . . . . 325 942 145 . . . . 365 Fastest Speed 24 | 50 160 160 160 160 160 24 120 120 120 120 100 48 48 38 38 35 35 33 28 32 26 30 27 Average Speed 83 | 129 160 160 160 160 161 54 120 120 120 120 149 50 48 43 38 40 36 39 55 33 26 31 46 Slowest Speed 500 | 160 160 160 160 160 460 195 120 120 120 120 500 190 48 108 38 120 119 360 112 112 38 38 260 Overloaded Moves 34 | . . . . . . . . . . . . . . . . . . . . . . . 34 Propulsion Burnouts . | . . . . . . . . . . . . . . . . . . . . . . . . Robots Hopped 29 | . . . . . . 11 . . . . . . . . . 2 12 . . . . . 4 Potential Cave-ins 4 | . . . . . . . . . . . . . . . . . . . . . 4 . . Cave-ins Triggered . | . . . . . . . . . . . . . . . . . . . . . . . . Teleports 2 | . . . . . . . . . . . . . . . . . . . 1 . 1 . . Exploration Rate (%) 55 | 5 98 46 59 85 91 40 64 52 69 52 13 53 61 60 79 24 86 16 29 92 27 81 47 Regions Visited 23 Branch Regions 17 Pre-discovered Areas 8 | . . . 1 . . 1 . . 1 1 . 1 . 3 . . . . . . . . . Known Exits Taken 18 | . 1 . 1 . . 1 1 1 1 1 1 1 1 1 . 1 1 1 1 1 1 1 . Unknown Exits Taken 5 | 1 . 1 . 1 1 . . . . . . . . . 1 . . . . . . . . Scrap Searched 13 | . . 1 . . 4 . 5 . . . . 3 . . . . . . . . . . . Spaces Dug 114 | . . . 1 2 . 14 . 3 . . 8 . 3 . 9 25 . 4 3 . 27 3 12 Terrain Destroyed 286 | . 89 . 36 2 . 32 . 3 . . 11 4 3 . 26 29 . 4 3 . 27 3 14 Melee 105 | . . . 1 2 . 14 . 3 . . 8 . 3 . . 25 . 4 3 . 27 3 12 Projectile 35 | . . . . . . . . . . . 3 . . . 26 4 . . . . . . 2 AOE 146 | . 89 . 35 . . 18 . . . . . 4 . . . . . . . . . . . Terrain Rammed . | . . . . . . . . . . . . . . . . . . . . . . . . Walls Destroyed . | . . . . . . . . . . . . . . . . . . . . . . . . Machines Disabled . | . . . . . . . . . . . . . . . . . . . . . . . . Actions | -11 -10 -10 -10 -8 -8 -6 -6 -6 -6 -5 -5 -5 -5 -5 -4 -4 -4 -3 -3 -3 -2 -2 -2 --------- Run | Yrd Mat Min Sub Rec Scr Fac Low Low Dat Pro Fac Upp Upp Zhi Pro Fac Ext Res Arm Lab Res Qua Frg Total 23054 | 45 910 293 814 405 2277 2542 629 471 83 339 1376 580 371 295 1331 1961 1621 1004 1520 322 968 1271 1626 Wait 4067 | . 36 66 75 2 7 467 140 170 . 19 218 149 16 61 551 501 535 243 313 104 77 204 113 Move 17325 | 39 780 217 666 374 2240 1871 460 298 82 314 989 407 351 176 742 1238 922 721 1109 195 838 988 1308 Hop 22 | . . . . . . 10 . . . . . . . . . 2 7 . . . . . 3 Pick Up 210 | . 29 . 4 8 8 22 7 . . 2 18 8 . 7 . 31 9 3 18 6 3 17 10 Fast Attach 154 | 6 1 1 2 . 4 23 2 . . . 13 2 . 6 1 20 4 10 11 4 3 7 34 Attach 103 | . 2 . 2 2 5 21 . . . . 16 7 . 5 . 13 4 2 2 1 6 5 10 Detach 41 | . . . . . 2 9 . . . . 2 1 . 4 . 3 1 . 3 . 2 1 13 Swap 74 | . 3 3 6 3 3 10 4 . . . 3 3 1 4 . 5 8 3 8 . 1 3 3 Drop 247 | . 15 4 5 10 8 25 11 . 1 2 8 2 . 11 1 38 10 9 21 7 4 15 40 Fire 300 | . 44 . 47 . . 4 3 . . . 31 1 . 21 36 50 . . 13 . 2 13 35 Melee 340 | . . . 7 6 . 78 1 3 . 2 60 . 3 . . 47 23 13 15 5 32 18 27 Ram 2 | . . . . . . . . . . . . . . . . 2 . . . . . . . Kick . | . . . . . . . . . . . . . . . . . . . . . . . . Crush 2 | . . 2 . . . . . . . . . . . . . . . . . . . . . Escape Stasis 56 | . . . . . . . . . . . 15 . . . . 11 30 . . . . . . Rewire 75 | . . . . . . . . . . . . . . . . . 68 . 7 . . . . Trap 5 | . . . . . . 2 . . . . 3 . . . . . . . . . . . . Miscellaneous 31 | . . . . . . . 1 . . . . . . . . . . . . . . . 30 Route ------- -11/Scrapyard -10/Materials (discovered 4 exits: [*Mat x3] / *Min) -10/Mines (discovered 2 exits: [*Mat] / *Sub) -10/Subcaves (discovered 2 exits: [*Mat] / *Rec) -8/Recycling -8/Scraptown (discovered 2 exits: *Fac x2) -6/Factory (discovered 2 exits: *Low x2) -6/Lower Caves -6/Lower Caves (discovered 2 exits: *Fac / *Dat) -6/Data Miner -5/Proximity Caves -5/Factory -5/Upper Caves -5/Upper Caves -5/Zhirov -4/Proximity Caves -4/Factory (discovered 2 exits: Upp / *Ext) -4/Extension (discovered 2 exits: *Res / [*Cet]) -3/Research (discovered 5 exits: *Res x2 / *Arm / Tes x2) -3/Armory (discovered 3 exits: Res x2 / *Lab) -3/Lab -2/Research (discovered 2 exits: *Qua x2) -2/Quarantine (discovered 3 exits: [*Acc] / *Sec / *Frg) -2/Protoforge History --------- Turn | Location | Event 6 | -11/Scrapyard | Discovered new exit (range 15) 61 | -11/Scrapyard | Entered Materials 178 | -10/Materials | Identified exit to Mines 318 | -10/Materials | Build established: Mutant 614 | -10/Materials | Discovered new exit (range 10) 780 | -10/Materials | Discovered new exit (range 13) 1136 | -10/Materials | Discovered new exit (range 15) 1514 | -10/Materials | Entered Mines 1521 | -10/Mines | Received a Rocket Launcher from a helpful Derelict 1613 | -10/Mines | Discovered new exit (range 10) 1641 | -10/Mines | Assisted by bots powering up and referring to "LRC-V3" 1754 | -10/Mines | Joined a pair of Derelicts in attacking an 0b10 outpost 1766 | -10/Mines | Learned Materials terminal intel 1893 | -10/Mines | Discovered new exit (range 5) 1937 | -10/Mines | Entered Subcaves 1937 | -10/Subcaves | Accompanied by 2 allies 2107 | -10/Subcaves | Discovered new exit (range 8) 2109 | -10/Subcaves | Learned location of Zion (-7) 2216 | -10/Subcaves | Shifting Twisted Machinery released Ripper 2226 | -10/Subcaves | Shifting Twisted Machinery released Mak. Light Armor Plating 2600 | -10/Subcaves | A swath of the cavern ceiling suddenly collapsed 2876 | -10/Subcaves | Ambushed by angry Subdweller bent on revenge 2902 | -10/Subcaves | Identified exit to Recycling 2915 | -10/Subcaves | Visited Clippyterm 2919 | -10/Subcaves | Learned Research machine intel 3110 | -10/Subcaves | Core integrity fell below 50% 3233 | -10/Subcaves | Entered Recycling 3825 | -8/Recycling | Scanned before Scraplab entrance 3848 | -8/Recycling | Entered Scraplab 3863 | -8/Recycling | Discovered new exit (range 3) 3867 | -8/Recycling | Entered Scraptown 3867 | -8/Scraptown | System corruption cleaned by C-Scrubber 4111 | -8/Scraptown | Discovered new exit (range 13) 4205 | -8/Scraptown | Scanned Subdweller tech in exchange for log data 4213 | -8/Scraptown | Learned 12 Research zone layouts 4243 | -8/Scraptown | Heard Great Nut preacher, LISTEN AND RECITE! 4323 | -8/Scraptown | Visited Cave Peace 4378 | -8/Scraptown | Visited UFD Registry 4379 | -8/Scraptown | Registered with UFD as "Metaroller" 4695 | -8/Scraptown | Visited IN-MT5's Study 4719 | -8/Scraptown | Visited Assassins FH 4755 | -8/Scraptown | Visited CR-KLE's Repair Center 4875 | -8/Scraptown | Visited Infowarlord's Domain 4925 | -8/Scraptown | Visited Science Guys 4981 | -8/Scraptown | Visited Derelict Rescue Squad 5010 | -8/Scraptown | Visited Observation Area 5099 | -8/Scraptown | Visited Research Penetration Think Tank 5162 | -8/Scraptown | Visited Junk Repository 5211 | -8/Scraptown | Visited LU-1G1's Boring Crew 5311 | -8/Scraptown | Visited Curators Association 5431 | -8/Scraptown | Delivered Scrap Shield to a Scientist 5691 | -8/Scraptown | Found DRS Beacon 5932 | -8/Scraptown | Found Exp. Sensor Array 6843 | -8/Scraptown | Visited Red Mages 6947 | -8/Scraptown | CR-KLE repaired 5 parts 7021 | -8/Scraptown | Visited Cyclists 7056 | -8/Scraptown | Visited Awakened 7427 | -8/Scraptown | Met Optimus 7427 | -8/Scraptown | Accepted into 0bPrime 7515 | -8/Scraptown | Discovered new exit (range 5) 7521 | -8/Scraptown | Entered Factory 7521 | -6/Factory | Evolved 8 slots: Power x1, Propulsion x3, Utility x4 7966 | -6/Factory | Identified exit to Lower Caves 8010 | -6/Factory | Build established: Hacker-Sprinter 8252 | -6/Factory | Loaded intel: 8 recycling unit locations 8308 | -6/Factory | Learned location of Protoforge (-2) 8673 | -6/Factory | Lost 3 parts (2n1w) 8881 | -6/Factory | Lost 4 parts (4n) 8906 | -6/Factory | Allied Derelicts emerged from ambush trap array 9353 | -6/Factory | Entered Lower Caves 9355 | -6/Lower Caves | UFD Scientist delivered a prototype 9356 | -6/Lower Caves | Activated DRS Beacon 9435 | -6/Lower Caves | Found Prototype Protection 9456 | -6/Lower Caves | Build established: Hacker-Mutant 9850 | -6/Lower Caves | Discovered new exit (range 11) 9984 | -6/Lower Caves | Encountered a Warlord checkpoint 9994 | -6/Lower Caves | Learned Factory emergency access door positions 10001 | -6/Lower Caves | Learned 4 Factory zone layouts 10060 | -6/Lower Caves | Identified exit to Lower Caves 10075 | -6/Lower Caves | Entered another Lower Caves area 10075 | -6/Lower Caves | Discovered new exit (range 9) 10085 | -6/Lower Caves | Identified exit to Factory 10105 | -6/Lower Caves | Encountered a Warlord checkpoint 10208 | -6/Lower Caves | Identified exit to Data Miner 10612 | -6/Lower Caves | Entered Data Miner 10613 | -6/Data Miner | Discovered new exit (range 6) 10636 | -6/Data Miner | Met Data Miner 10659 | -6/Data Miner | Learned location of Section 7 (-2) 10659 | -6/Data Miner | Acquired the access code to Warlord's prototype stash 10677 | -6/Data Miner | Received God Mode back door access code from Data Miner 10710 | -6/Data Miner | Identified exit to Proximity Caves 10711 | -6/Data Miner | Entered Proximity Caves 10714 | -5/Proximity Caves | Spotter reported a threat 10776 | -5/Proximity Caves | Learned location of Warlord (-4) 11044 | -5/Proximity Caves | Discovered exit to Factory (range 14) 11116 | -5/Proximity Caves | Entered Factory 11116 | -5/Factory | Evolved 2 slots: Utility x2 11124 | -5/Factory | Identified Enh. Scrap Shield 11150 | -5/Factory | Loaded intel: 8 recycling unit locations 11251 | -5/Factory | Discovered new exit (range 4) 11256 | -5/Factory | Identified exit to Upper Caves 11728 | -5/Factory | Lost 12 parts (1p6n5u) 11911 | -5/Factory | Build established: Gladiator 12091 | -5/Factory | Lost 4 parts (1n3u) 12302 | -5/Factory | Incoming investigation squad redirected 12372 | -5/Factory | Build established: Scavenger-Mutant 12386 | -5/Factory | Fabricated Antigrav System (x2) 12629 | -5/Factory | Lost 4 parts (1p1n1u1w) 12843 | -5/Factory | Core integrity fell below 50% 12910 | -5/Factory | Core integrity fell below 20% 12953 | -5/Factory | Lost 9 parts (1p3n2u3w) 13148 | -5/Factory | Entered Upper Caves 13322 | -5/Upper Caves | Encountered a Warlord checkpoint 13503 | -5/Upper Caves | Discovered new exit (range 14) 13509 | -5/Upper Caves | Learned location of 1 exit from Factory 13515 | -5/Upper Caves | Learned location of Armory (-3) 13526 | -5/Upper Caves | Identified exit to Upper Caves 13529 | -5/Upper Caves | Entered another Upper Caves area 13665 | -5/Upper Caves | Learned 4 Factory zone layouts 13710 | -5/Upper Caves | Discovered new exit (range 10) 13720 | -5/Upper Caves | Learned location of 1 exit from Factory 13724 | -5/Upper Caves | Identified exit to Zhirov 13724 | -5/Upper Caves | Entered Zhirov 13725 | -5/Zhirov | Discovered new exit (range 3) 13734 | -5/Zhirov | Met Zhirov 13744 | -5/Zhirov | Learned location of Quarantine (-2) 13744 | -5/Zhirov | Learned location of Testing (-3) 13744 | -5/Zhirov | Learned location of Command (-1) 13747 | -5/Zhirov | Zhirov requested help retrieving the SGEMP Prototype 13755 | -5/Zhirov | Found Alien Artifact 13755 | -5/Zhirov | Identified Integrated Dissipator 13755 | -5/Zhirov | Installed Integrated Dissipator, increased core heat dissipation (+20) 13762 | -5/Zhirov | Found Alien Artifact 13937 | -5/Zhirov | Identified exit to Proximity Caves 13937 | -5/Zhirov | Entered Proximity Caves 13940 | -4/Proximity Caves | Spotter reported a threat 14264 | -4/Proximity Caves | Received a Behemoth hack from an annoying Tinkerer 14843 | -4/Proximity Caves | Discovered new exit (range 7) 14844 | -4/Proximity Caves | Entered Factory 14844 | -4/Factory | Evolved 2 slots: Utility x2 14845 | -4/Factory | Identified exit to Upper Caves 14845 | -4/Factory | Identified exit to Extension 15273 | -4/Factory | Fabricated Lgt. Regenerative Plating? 15422 | -4/Factory | Build established: Wizard-Mutant 15772 | -4/Factory | Lost 6 parts (1p3n1u1w) 16015 | -4/Factory | Loaded intel: 8 recycling unit locations 16191 | -4/Factory | Entered Extension 16251 | -4/Extension | Lost 3 parts (1p2u) 16296 | -4/Extension | Lost 3 allies 16373 | -4/Extension | Rescued A7 16642 | -4/Extension | Build established: Wizard-Gladiator 16798 | -4/Extension | Spotted B-86 Titan 16813 | -4/Extension | Allies destroyed B-86 Titan 16842 | -4/Extension | Spotted B-86 Titan 16856 | -4/Extension | Allies destroyed B-86 Titan 16896 | -4/Extension | Rescued a captive Derelict 16897 | -4/Extension | Rescued a captive Derelict 16952 | -4/Extension | Extracted ID and sensor layout for unrecognized location from A7's data core 16977 | -4/Extension | Rescued a captive Derelict 17018 | -4/Extension | Lost 3 allies 17119 | -4/Extension | Lost 8 allies 17138 | -4/Extension | Rescued a captive Derelict 17138 | -4/Extension | Rescued a captive Derelict 17173 | -4/Extension | Discovered new exit (range 10) 17173 | -4/Extension | Discovered new exit (range 6) 17191 | -4/Extension | First assault squad dispatched 17260 | -4/Extension | Identified exit to Research 17260 | -4/Extension | Entered Research 17260 | -3/Research | Evolved 2 slots: Utility x2 17261 | -3/Research | Identified exit to Research 17261 | -3/Research | Identified exit to Testing 17262 | -3/Research | Loaded intel: 112 machine locations 17281 | -3/Research | Lost 4 allies 17300 | -3/Research | Identified exit to Armory 17431 | -3/Research | Loaded intel: 5 recycling unit locations 17561 | -3/Research | Discovered exit to Research (range 2) 17639 | -3/Research | Spotted B-86 Titan 17725 | -3/Research | Befriended a Behemoth using the annoying Tinkerer's hack 17846 | -3/Research | Entered Armory 17846 | -3/Armory | Accompanied by 2 allies 17921 | -3/Armory | Build established: Wizard-Sprinter 18244 | -3/Armory | Lost 4 allies 18259 | -3/Armory | Spotted B-86 Titan 18346 | -3/Armory | Befriended a Behemoth using the annoying Tinkerer's hack 18412 | -3/Armory | Found Hvy. Reflective Plating 18844 | -3/Armory | Fabricated Lgt. Regenerative Plating (x1) 18895 | -3/Armory | Identified Transdimensional Reconstructor 18895 | -3/Armory | Warped through subspace to slip node 18895 | -3/Armory | Discovered new exit (range 1) 18895 | -3/Armory | Identified exit to Lab 18898 | -3/Armory | Entered Lab 18898 | -3/Lab | Discovered exit to Research (range 9) 18902 | -3/Lab | Hidden lab's door opened automatically 18902 | -3/Lab | Sensor layout match revealed 18903 | -3/Lab | Gained access to the hidden lab's interior 18931 | -3/Lab | Found Transdimensional Reconstructor 18936 | -3/Lab | Found Alien Artifact 18936 | -3/Lab | Identified Integrated Mediator 18936 | -3/Lab | Installed Integrated Mediator, increased core attachment efficiency 18944 | -3/Lab | Found Alien Artifact 18944 | -3/Lab | Identified Core Regenerator 18944 | -3/Lab | Used Core Regenerator, restored core integrity (+180) 19018 | -3/Lab | Found Prototype Protection 19018 | -3/Lab | Identified Exp. Powered Armor 19028 | -3/Lab | Found Prototype Energy Cannon 19062 | -3/Lab | Found Prototype Hackware 19096 | -3/Lab | Entered Research 19096 | -2/Research | Evolved 2 slots: Propulsion x1, Utility x1 19099 | -2/Research | Identified Deep Network Scanner 19192 | -2/Research | Loaded intel: 5 recycling unit locations 19210 | -2/Research | Identified exit to Quarantine 19330 | -2/Research | Spotted B-90 Cyclops 19359 | -2/Research | Warped through subspace 19480 | -2/Research | Spotted B-90 Cyclops 19487 | -2/Research | Identified Warp Cannon 19494 | -2/Research | Entered Quarantine 19507 | -2/Quarantine | Found Alien Artifact 19507 | -2/Quarantine | Identified Subatomic Replicator 19524 | -2/Quarantine | Lost 5 parts (1p2n2u) 19535 | -2/Quarantine | Found Alien Artifact 19535 | -2/Quarantine | Identified Phase Redirector 19596 | -2/Quarantine | Repaired Linear Gravjet 19616 | -2/Quarantine | Repaired Antigrav System+ 19774 | -2/Quarantine | Discovered new exit (range 14) 19943 | -2/Quarantine | Found Fusion Bomb Launcher 19945 | -2/Quarantine | Found Gamma Bomb Array 20097 | -2/Quarantine | Spotted Fortress 20117 | -2/Quarantine | Discovered new exit (range 6) 20117 | -2/Quarantine | Discovered new exit (range 7) 20119 | -2/Quarantine | Identified exit to Protoforge 20120 | -2/Quarantine | Identified exit to Section 7 20121 | -2/Quarantine | Entered Protoforge 20129 | -2/Protoforge | Spotted Hotshot 20151 | -2/Protoforge | Spotted Hotshot 20198 | -2/Protoforge | Superfortress began startup sequence 20287 | -2/Protoforge | Spotted Hotshot 20287 | -2/Protoforge | Spotted Hotshot 20291 | -2/Protoforge | Spotted B-90 Cyclops 20359 | -2/Protoforge | Found Prototype Protection 20359 | -2/Protoforge | Identified Cep. Core Shell 20366 | -2/Protoforge | Found Cep. Core Shell 20368 | -2/Protoforge | Found Cep. Core Shell 20409 | -2/Protoforge | Spotted SKR-2 20412 | -2/Protoforge | Spotted SKR-2 20412 | -2/Protoforge | Spotted SKR-2 20423 | -2/Protoforge | UFD initiated attack on Protoforge (Readiness: High) 20423 | -2/Protoforge | Loaded intel: 3 recycling unit locations 20459 | -2/Protoforge | Optimus greeted in Protoforge 20483 | -2/Protoforge | Found UFD Drillbomb 20496 | -2/Protoforge | Found Prototype Processor 20496 | -2/Protoforge | Identified Exp. Melee Analysis Suite 20537 | -2/Protoforge | Spotted EXE-6 20537 | -2/Protoforge | Spotted EXE-6 20555 | -2/Protoforge | Found Prototype Processor 20555 | -2/Protoforge | Identified Exp. Core Analyzer 20557 | -2/Protoforge | Found Prototype Processor 20557 | -2/Protoforge | Identified Exp. Armor Integrity Analyzer 20560 | -2/Protoforge | Found Prototype Ballistic Gun 20560 | -2/Protoforge | Identified Cep. XC Strikerail 20566 | -2/Protoforge | Spotted AP7-3 20574 | -2/Protoforge | Lost 6 allies 20587 | -2/Protoforge | Found Prototype Processor 20587 | -2/Protoforge | Identified Exp. Targeting Computer 20589 | -2/Protoforge | Found Prototype Device 20589 | -2/Protoforge | Identified Exp. ECM Suite 20625 | -2/Protoforge | UFD reported confirmed Drillbomb installation 20629 | -2/Protoforge | Installed UFD Drillbomb at designated target 20629 | -2/Protoforge | UFD reported confirmed Drillbomb installation 20638 | -2/Protoforge | Met 7R-MNS 20746 | -2/Protoforge | Spotted Executioner 20747 | -2/Protoforge | Spotted Striker 20748 | -2/Protoforge | Spotted Striker 20751 | -2/Protoforge | Spotted Striker 20770 | -2/Protoforge | Build established: Scavenger-Mutant 20788 | -2/Protoforge | Found UFD Drillbomb 20795 | -2/Protoforge | Lost 3 allies 20802 | -2/Protoforge | Installed UFD Drillbomb at designated target 20802 | -2/Protoforge | UFD reported confirmed Drillbomb installation 20863 | -2/Protoforge | Found UFD Drillbomb 20874 | -2/Protoforge | Spotted Executioner 20876 | -2/Protoforge | P-80 Master assimilated allied 02F36-D 20891 | -2/Protoforge | Spotted Executioner 20941 | -2/Protoforge | UFD reported confirmed Drillbomb installation 20960 | -2/Protoforge | Lost 6 allies 20980 | -2/Protoforge | P-80 Master assimilated allied Lugger 196 20986 | -2/Protoforge | Spotted Executioner 20994 | -2/Protoforge | Spotted Executioner 21036 | -2/Protoforge | Core integrity fell below 50% 21045 | -2/Protoforge | Spotted Immortal 21046 | -2/Protoforge | Spotted Immortal 21046 | -2/Protoforge | Spotted Immortal 21049 | -2/Protoforge | Spotted Striker 21059 | -2/Protoforge | Lost 11 parts (1p4n6u) 21106 | -2/Protoforge | Spotted Hotshot 21106 | -2/Protoforge | Spotted Hotshot 21106 | -2/Protoforge | Spotted Executioner 21108 | -2/Protoforge | Core integrity fell below 20% 21122 | -2/Protoforge | Installed UFD Drillbomb at designated target 21122 | -2/Protoforge | UFD reported confirmed Drillbomb installation 21129 | -2/Protoforge | Destroyed by Executioner with Helical Railgun Last Messages --------------- target. 21119_ Impulse Thruster Array destroyed. 21119_ Centrium Light Armor Plating destroyed. 21119_ Lgt. Regenerative Plating destroyed. 21119_ UFD Drillbomb installation progress: 7/10. 21120_ Hotshot activates shielding mode. 21120_ UFD Drillbomb installation progress: 8/10. 21121_ UFD Drillbomb installation progress: 9/10. UFD Drillbomb buries itself in the floor. 21122_ 0bP_NET: Important update! 5/10 targets ready for detonation. 21123_ Hotshot activates shielding mode. 21123_ Penetrated by Slug. 21123_ Slug penetrates Wall. 21123_ Terminal disabled. 21123_ Dropped Lrg. Storage Unit. 21127_ Penetrated by Slug. Map ----- +----------------------------------------------------+ | ???????????#???##??????##??? #######"####"" ! | | ???????????#???##########????####"##"?? =%! | | ?????????###???##########????????? ?? * | | ????????????????????????? ??######" ?? "" " | | ????????????????????????? #######" ##### | | ????????????????????????? ########"##### " !" | | ????????????????????????? # # =% | | ?????????################ # "" =# "" !" | | ?????????#????#?????????# # ""T""%" = ![% | | ?????????#????#?????????# # "[="%#!%! *!= | | ?????????#????#?????""" # # " ![[%!#=![!=!= | | ?????????#????#?????" " + "%"%*%%%=!% !%[! | | ??????????????#?????????+ % ; % !!%*[! !%==% | | ?####????#??????????????# % # % = !!==[*%* | | #####????#????#?????????# # """" * ![%==% | | #####????#????#?????????# # """"" =[ =%%*[! | | #####????#????########### # !%[!![ %[!%! | | ?????????################ # =* !!!%%==] | | ?????????#######???????## ### #####""### !=% | | ?????????##????????????## ######?######" ! | | ?????????##??#####?????## ######?##???## ! | | ###########??############ ######?####### ] % | | ??????#####??## ######### ######?#########% ""# | | ??????##?????## # #?????????#####"=%# # | | ??????##?????## # #?????????##??#"### | | ??????###????## #@ #?????????##??##### # | | ??????###????## """ + +?????????##??????# | | " ?????##????## """ # #?????????##?????## | | " "???###????## T """ # #?????????##?????##"" | | " """?######?## # #?????????##?????## | | " """?########" # #?????????##?????## | | " """?????### ""######### ##################" | | ? ?###?### #####?### Y###################"" | | ###+########"""######?### ##?## # | | # !"#????????# ##?## # | | # "#????????# ##?## | | # ##????????# ##?## # | | # ##????????# ##?## # | | # ##????????# ##?## # | | # ##????????# ;#?## # | | # ##????????+ ##?## # | | # ##????????# % ##?## # | | # ##????????#!=[ ##### # | | ######+##################E%! #"##########"###+#### | | =! |! % * "### | | =%[ ! = %! | | =|| = %% ""##### | | !% # | | #"## ###+############"""##"##""##""" # | | ## # ### " # # | +----------------------------------------------------+ Best States ------------- Heat Dissipation 69 Energy Generation 45 Energy Capacity 1190 Matter Stores 300 Matter Capacity 300 Sight Range 23 Robot Scan Range 20 Terrain Scan Density 10 ECM Strength 3 Jamming Range 16 Cloak Strength 4 Power Amplification 30 Additional Mass Support 9 Armor Coverage 950 Resistance: KI 20 Core Shielding 90 Propulsion Shielding 90 Weapon Shielding 90 Weapon Cycling 15 Evasion (%) 71 Targeting Accuracy 12 Melee Accuracy 16 Target Analysis 8 Core Analysis 8 Armor Integrity Analysis 50 Recoil Reduction 2 Energy Filtering 30 Particle Charging 30 Offensive Hacking 59 Defensive Hacking 66 Authchip Count 6 Item Schematics ----------------- Imp. Hacking Suite | -6/Factory | Hacked Combat Drone Bay | -6/Data Miner | Free Lgt. Regenerative Plating | -6/Data Miner | Free Cld. Nuclear Pulse Thruster | -6/Data Miner | Free Exp. Heat Sink | -6/Data Miner | Free Hvy. Proton Missile Launcher | -6/Data Miner | Free Imp. Linear Gravjet | -6/Data Miner | Free Adv. Cryofiber Web | -6/Data Miner | Free Adv. Datajack | -6/Data Miner | Free Imp. Thunder Leg | -6/Data Miner | Free Quantum Rifle | -6/Data Miner | Free Assault Drone Bay | -5/Zhirov | Free Exp. Optical Array | -5/Zhirov | Free Imp. Arc Thrower | -5/Zhirov | Free Robot Schematics ------------------ Y-54 Guardian | -6/Data Miner | Free B-60 Warrior | -6/Data Miner | Free B-48 Gladiator | -6/Data Miner | Free Fabricated ------------ Antigrav System | x2 | -5/Factory | Preloaded Lgt. Regenerative Plating | x1 | -4/Factory Lgt. Regenerative Plating | x1 | -3/Armory Repaired ---------- Linear Gravjet | 18% | -2/Quarantine Antigrav System | 27% | -2/Quarantine Studied --------- Antigrav System | -4/Factory | Hacked Imp. Plasma Cutter | -4/Factory | Hacked Gravmag Array | -4/Factory | Hacked Plasma Rifle | -4/Factory | Hacked Power Maul | -4/Factory | Hacked Imp. Proton Missile Launcher | -4/Factory | Hacked Field Propulsion Drive | -4/Factory | Hacked Field Propulsion Array | -4/Factory | Hacked Alien Tech Used ----------------- Integrated Dissipator Transdimensional Reconstructor Integrated Mediator Core Regenerator Subatomic Replicator Phase Redirector Achievements -------------- Fine I'll Do It Myself Hammer Time Tune-up We Are One Challenges ------------ None Game ------ Seed RainbowMetaScrapsphere Manual? 0 Play Time 03:40:25 Cumulative 502.4 hours Start 2025.11.02 @ 18:53:44 End 2025.11.03 @ 01:31:44 Sessions 5 Manual Loads 0 Difficulty Rogue Special Mode None Game No. 833 Rogue 678 Adventurer 148 Explorer 7 Win Type - Total 24 Types 19/1/3/1/0/0/0/0/0/0 Lore% 73 Gallery% 78 Achievement% 60 Wizard Run 0 Options --------- Layout 1 ASCII 0 Keyboard 0 Movement Numpad Keybinds 0 Fullscreen 2 Font 24/Smallcaps Map View 50x35 Zoom Use 0% Tactical HUD 1 Map Filters NONE Filters NONE Steam 1 RUN: 5a7f7acb-f2ae-4dfc-9bcd-f43a8fb04eff